[Event "Elitserien Allsvenskan 2018-19"]
[Site "Sweden"]
[Date "2019.03.30"]
[Round "8.5"]
[White "Mauritsson, Sebastian"]
[Black "Isaksson, Henrik"]
[Result "1-0"]
[ECO "C36"]
[WhiteElo "2327"]
[BlackElo "2086"]
[Annotator "ChessBase"]
[PlyCount "85"]
[EventDate "2018.11.09"]
[EventType "team-tourn"]
[EventCountry "SWE"]
[SourceTitle "playchess.com"]
[Source "ChessBase"]
[SourceQuality "1"]
[TimeControl "40/5400+30:1800+30"]

1. e4 {[%emt 0:00:00]} e5 {[%emt 0:00:00]} 2. f4 {[%emt 0:03:57]} d5 {[%emt 0:01:09]} 3. exd5 {[%emt 0:00:14]} exf4 {[%emt 0:00:06]} 4. Nf3 {[%emt 0:00:45]} Nf6 {[%emt 0:01:46]} 5. Bc4 {[%emt 0:02:31]} Bd6 {[%emt 0:02:42]} 6. O-O {[%emt 0:02:06]} O-O {[%emt 0:00:10]} 7. d4 {[%emt 0:02:03]} c6 {[%emt 0:03:14]} 8. dxc6 {[%emt 0:02:12]} Nxc6 {[%emt 0:00:11]} 9. Nc3 {[%emt 0:12:24]} Bg4 {[%emt 0:10:32]} 10. Kh1 {[%emt 0:18:40]} Rc8 {[%emt 0:10:14]} 11. Ne2 {[%emt 0:01:05]} Nh5 {[%emt 0:07:02]} 12. c3 {[%emt 0:03:33]} Qf6 {[%emt 0:11:18]} 13. Bd3 {[%emt 0:04:15]} Rfe8 {[%emt 0:03:50]} 14. Bd2 {[%emt 0:05:31]} Rc7 {[%emt 0:13:59]} 15. Be1 {[%emt 0:07:15]} g5 {[%emt 0:03:30]} 16. Bf2 {[%emt 0:01:56]} Bf5 {[%emt 0:07:58]} 17. Kg1 {[%emt 0:07:41]} Rce7 {[%emt 0:03:05]} 18. Re1 {[%emt 0:01:17]} Ng7 {[%emt 0:03:15]} 19. Qc2 {[%emt 0:01:21]} Bxd3 {[%emt 0:01:20]} 20. Qxd3 {[%emt 0:00:02]} Nf5 {[%emt 0:00:10]} 21. d5 {[%emt 0:02:15]} Ne5 {[%emt 0:01:06]} 22. Nxe5 {[%emt 0:00:06]} Rxe5 {[%emt 0:00:59]} 23. c4 {[%emt 0:06:36]} b6 {[%emt 0:03:23]} 24. Nc3 {[%emt 0:04:06]} Ne3 {[%emt 0:01:55]} 25. Re2 {[%emt 0:02:32]} f3 {[%emt 0:04:29]} 26. gxf3 {[%emt 0:05:34]} Qxf3 {[%emt 0:00:26]} 27. Bg3 {[%emt 0:00:41]} Bc5 {[%emt 0:01:51]} 28. Rf2 {[%emt 0:00:46]} Qg4 {[%emt 0:01:02]} 29. Na4 {[%emt 0:00:42]} Nxc4 {[%emt 0:00:43]} 30. Nxc5 {[%emt 0:00:30]} bxc5 {[%emt 0:01:12]} 31. Raf1 {[%emt 0:01:12]} Ne3 {[%emt 0:01:05]} 32. Rxf7 {[%emt 0:00:23]} Re4 {[%emt 0:00:51]} 33. R1f2 {[%emt 0:01:19]} Qd1+ {[%emt 0:01:05]} 34. Qxd1 {[%emt 0:00:06]} Nxd1 {[%emt 0:00:02]} 35. R2f6 {[%emt 0:01:12]} Nxb2 {[%emt 0:00:34]} 36. d6 {[%emt 0:00:19]} Rd4 {[%emt 0:00:36]} 37. Re7 {[%emt 0:00:32]} Rd8 {[%emt 0:00:44]} 38. Rff7 {[%emt 0:00:08]} Rd1+ {[%emt 0:00:30]} 39. Kg2 {[%emt 0:00:08]} R8xd6 {[%emt 0:00:25]} 40. Rg7+ {[%emt 0:00:21]} Kf8 {[%emt 0:00:07]} 41. Ref7+ {[%emt 0:30:39]} Ke8 {[%emt 0:30:09]} 42. Bxd6 {[%emt 0:01:19]} Rxd6 {[%emt 0:00:11]} 43. Rxa7 {[%emt 0:00:17]} 1-0

[Event "Elitserien Allsvenskan 2018-19"]
[Site "Sweden"]
[Date "2019.03.30"]
[Round "8.5"]
[White "Hjelm, Niclas"]
[Black "Gajic, Mladen"]
[Result "0-1"]
[ECO "A40"]
[WhiteElo "2323"]
[BlackElo "2322"]
[Annotator "ChessBase"]
[PlyCount "82"]
[EventDate "2018.11.09"]
[EventType "team-tourn"]
[EventCountry "SWE"]
[SourceTitle "playchess.com"]
[Source "ChessBase"]
[SourceQuality "1"]
[TimeControl "40/5400+30:1800+30"]

1. d4 {[%emt 0:00:00]} e6 {[%emt 0:00:31]} 2. c4 {[%emt 0:01:24]} f5 {[%emt 0:00:12]} 3. Nf3 {[%emt 0:02:28]} Nf6 {[%emt 0:01:03]} 4. Bg5 {[%emt 0:01:47]} h6 {[%emt 0:09:16]} 5. Bxf6 {[%emt 0:04:26]} Qxf6 {[%emt 0:00:05]} 6. Nc3 {[%emt 0:00:11]} Bb4 {[%emt 0:00:38]} 7. Rc1 {[%emt 0:03:40]} b6 {[%emt 0:11:14]} 8. g3 {[%emt 0:02:31]} Bb7 {[%emt 0:00:51]} 9. Bg2 {[%emt 0:00:14]} O-O {[%emt 0:10:22]} 10. O-O {[%emt 0:00:12]} Bxc3 {[%emt 0:00:39]} 11. Rxc3 {[%emt 0:00:16]} d6 {[%emt 0:00:24]} 12. Qa4 {[%emt 0:22:30]} Bc6 {[%emt 0:07:28]} 13. Qb3 {[%emt 0:03:58]} Be4 {[%emt 0:01:35]} 14. Rd1 {[%emt 0:03:42]} c5 {[%emt 0:13:07]} 15. Rd2 {[%emt 0:30:45]} Nc6 {[%emt 0:03:57]} 16. Qd1 {[%emt 0:01:15]} Rad8 {[%emt 0:05:55]} 17. d5 {[%emt 0:04:33]} exd5 {[%emt 0:08:15]} 18. cxd5 {[%emt 0:00:51]} Ne7 {[%emt 0:04:24]} 19. Ne1 {[%emt 0:00:44]} Bxg2 {[%emt 0:00:13]} 20. Nxg2 {[%emt 0:00:18]} g5 {[%emt 0:00:07]} 21. Re3 {[%emt 0:04:40]} Qf7 {[%emt 0:00:39]} 22. f4 {[%emt 0:03:18]} Ng6 {[%emt 0:01:53]} 23. Rdd3 {[%emt 0:00:33]} Rfe8 {[%emt 0:00:59]} 24. Qd2 {[%emt 0:02:46]} gxf4 {[%emt 0:05:14]} 25. Nxf4 {[%emt 0:01:41]} Nxf4 {[%emt 0:00:21]} 26. Rxe8+ {[%emt 0:00:48]} Rxe8 {[%emt 0:00:01]} 27. Qxf4 {[%emt 0:00:30]} Qf6 {[%emt 0:01:26]} 28. Re3 {[%emt 0:00:51]} Rxe3 {[%emt 0:05:24]} 29. Qxe3 {[%emt 0:00:02]} Kg7 {[%emt 0:00:24]} 30. Kg2 {[%emt 0:02:26]} c4 {[%emt 0:00:48]} 31. Qe8 {[%emt 0:01:00]} Qe5 {[%emt 0:05:43]} 32. Qxe5+ {[%emt 0:00:40]} dxe5 {[%emt 0:00:01]} 33. e4 {[%emt 0:00:10]} b5 {[%emt 0:01:16]} 34. exf5 {[%emt 0:00:35]} b4 {[%emt 0:00:17]} 35. Kf3 {[%emt 0:00:25]} a5 {[%emt 0:00:15]} 36. d6 {[%emt 0:00:30]} Kf7 {[%emt 0:01:26]} 37. Ke3 {[%emt 0:00:56]} a4 {[%emt 0:00:26]} 38. g4 {[%emt 0:00:44]} a3 {[%emt 0:00:55]} 39. bxa3 {[%emt 0:00:28]} b3 {[%emt 0:00:10]} 40. axb3 {[%emt 0:00:13]} cxb3 {[%emt 0:00:01]} 41. Kd2 {[%emt 0:03:29]} e4 {[%emt 0:01:55]} 0-1

[Event "Elitserien Allsvenskan 2018-19"]
[Site "Sweden"]
[Date "2019.03.30"]
[Round "8.5"]
[White "Drugge, Patrik"]
[Black "Arman, Deniz"]
[Result "0-1"]
[ECO "B06"]
[WhiteElo "2187"]
[BlackElo "2346"]
[Annotator "ChessBase"]
[PlyCount "54"]
[EventDate "2018.11.09"]
[EventType "team-tourn"]
[EventCountry "SWE"]
[SourceTitle "playchess.com"]
[Source "ChessBase"]
[SourceQuality "1"]
[TimeControl "40/5400+30:1800+30"]

1. e4 {[%emt 0:00:00]} g6 {[%emt 0:02:25]} 2. d4 {[%emt 0:00:00]} c6 {[%emt 0:00:04]} 3. Nf3 {[%emt 0:01:52]} d5 {[%emt 0:00:11]} 4. exd5 {[%emt 0:06:06]} cxd5 {[%emt 0:00:17]} 5. c4 {[%emt 0:02:54]} Nf6 {[%emt 0:00:15]} 6. Nc3 {[%emt 0:00:13]} Bg7 {[%emt 0:00:21]} 7. c5 {[%emt 0:01:35]} O-O {[%emt 0:00:50]} 8. Bf4 {[%emt 0:02:28]} b6 {[%emt 0:05:44]} 9. b4 {[%emt 0:14:08]} a5 {[%emt 0:35:54]} 10. b5 {[%emt 0:27:36]} bxc5 {[%emt 0:00:48]} 11. dxc5 {[%emt 0:00:06]} Ne4 {[%emt 0:06:20]} 12. Nxe4 {[%emt 0:00:44]} dxe4 {[%emt 0:00:06]} 13. Qxd8 {[%emt 0:11:14]} Rxd8 {[%emt 0:00:54]} 14. Ne5 {[%emt 0:00:08]} g5 {[%emt 0:05:24]} 15. Bg3 {[%emt 0:00:15]} f5 {[%emt 0:01:00]} 16. Bc4+ {[%emt 0:05:32]} e6 {[%emt 0:04:23]} 17. O-O {[%emt 0:21:45]} f4 {[%emt 0:00:36]} 18. Rad1 {[%emt 0:00:03]} Re8 {[%emt 0:00:41]} 19. Rfe1 {[%emt 0:02:05]} Bxe5 {[%emt 0:00:44]} 20. Rxe4 {[%emt 0:00:17]} Bf6 {[%emt 0:00:06]} 21. Bxf4 {[%emt 0:00:24]} gxf4 {[%emt 0:00:06]} 22. Rxf4 {[%emt 0:00:57]} Nd7 {[%emt 0:05:56]} 23. c6 {[%emt 0:00:30]} Nb6 {[%emt 0:00:14]} 24. Bb3 {[%emt 0:00:32]} a4 {[%emt 0:00:30]} 25. Bc2 {[%emt 0:00:06]} Kf7 {[%emt 0:04:08]} 26. Bxh7 {[%emt 0:00:54]} e5 {[%emt 0:00:06]} 27. Rf3 {[%emt 0:00:33]} Bg4 {[%emt 0:00:11]} 0-1

[Event "Elitserien Allsvenskan 2018-19"]
[Site "Sweden"]
[Date "2019.03.30"]
[Round "8.6"]
[White "Seo, Jung Min"]
[Black "Ottenklev, Niklas"]
[Result "0-1"]
[ECO "C04"]
[WhiteElo "2386"]
[BlackElo "2154"]
[Annotator "NA"]
[PlyCount "86"]
[EventDate "2018.11.09"]
[EventType "team-tourn"]
[EventCountry "SWE"]
[SourceTitle "playchess.com"]
[Source "ChessBase"]
[SourceQuality "1"]
[TimeControl "40/5400+30:1800+30"]

1. e4 {[%emt 0:00:00]} e6 {[%emt 0:00:00]} 2. d4 {[%emt 0:00:00]} d5 {[%emt 0:00:00]} 3. Nd2 {[%emt 0:00:00]} Nc6 {[%emt 0:00:04]} 4. Ngf3 {[%emt 0:00:46]} Nf6 {[%emt 0:00:13]} 5. e5 {[%emt 0:00:25]} Nd7 {[%emt 0:00:06]} 6. c3 {[%emt 0:02:42]} f6 {[%emt 0:00:21]} 7. exf6 {[%emt 0:00:27]} Qxf6 {[%emt 0:00:09]} 8. Nb3 {[%emt 0:01:09]} a5 {[%emt 0:03:31]} 9. Bg5 {[%emt 0:05:15]} Qf7 {[%emt 0:05:38]} 10. Nbd2 {[%emt 0:02:02]} Bd6 {[%emt 0:01:03]} 11. Be3 {[%emt 0:03:51]} e5 {[%emt 0:03:35]} 12. Be2 {[%emt 0:02:52]} O-O {[%emt 0:06:44]} 13. Qc2 {[%emt 0:03:38]} e4 {[%emt 0:05:02]} 14. Ng5 {[%emt 0:00:29]} Qg6 {[%emt 0:01:28]} 15. h4 {[%emt 0:03:41]} Bf4 {[%emt 0:03:08]} 16. O-O-O {[%emt 0:06:31]} Bxe3 {[%emt 0:09:09]} 17. fxe3 {[%emt 0:00:00]} Rf2 {[%emt 0:09:57]} 18. Ndxe4 {[%emt 0:13:33]} Rxe2 {[%emt 0:04:33]} 19. Qxe2 {[%emt 0:00:01]} h6 {[%emt 0:01:22]} 20. h5 {[%emt 0:07:58]} Qe8 {[%emt 0:00:24]} 21. Qd3 {[%emt 0:04:29]} dxe4 {[%emt 0:03:21]} 22. Nxe4 {[%emt 0:01:11]} Nb6 {[%emt 0:01:13]} 23. Nc5 {[%emt 0:08:32]} Bg4 {[%emt 0:02:22]} 24. Rdf1 {[%emt 0:00:19]} Bxh5 {[%emt 0:00:48]} 25. e4 {[%emt 0:01:10]} Bg6 {[%emt 0:04:04]} 26. Qg3 {[%emt 0:01:49]} Na4 {[%emt 0:06:58]} 27. Nd3 {[%emt 0:05:01]} Qxe4 {[%emt 0:01:50]} 28. Rd1 {[%emt 0:00:55]} Rf8 {[%emt 0:06:29]} 29. Rh4 {[%emt 0:02:56]} Qf5 {[%emt 0:02:33]} 30. Rf4 {[%emt 0:08:07]} Qg5 {[%emt 0:03:01]} 31. Qxg5 {[%emt 0:00:05]} hxg5 {[%emt 0:00:06]} 32. Rxf8+ {[%emt 0:00:04]} Kxf8 {[%emt 0:00:10]} 33. d5 {[%emt 0:00:25]} Ne7 {[%emt 0:01:49]} 34. Nf2 {[%emt 0:00:38]} Nf5 {[%emt 0:01:41]} 35. g4 {[%emt 0:00:50]} Nd6 {[%emt 0:02:30]} 36. Rd4 {[%emt 0:00:40]} Nc5 {[%emt 0:01:25]} 37. b4 {[%emt 0:02:21]} axb4 {[%emt 0:04:27]} 38. cxb4 {[%emt 0:00:00]} Na4 {[%emt 0:01:25]} 39. Nh3 {[%emt 0:00:56]} Nc3 {[%emt 0:01:36]} 40. Kb2 {[%emt 0:00:41]} Nce4 {[%emt 0:01:55]} 41. a4 {[%emt 0:30:16]} Ke7 {[%emt 0:30:35]} 42. Rd1 {[%emt 0:00:50]} Be8 {[%emt 0:00:51]} 43. Kb3 {[%emt 0:00:29]} Bxa4+ {[%emt 0:00:10]} 0-1

[Event "Elitserien Allsvenskan 2018-19"]
[Site "Sweden"]
[Date "2019.03.30"]
[Round "8.6"]
[White "Landgren, Andreas"]
[Black "Schneider, Stefan"]
[Result "0-1"]
[ECO "E33"]
[WhiteElo "2255"]
[BlackElo "2370"]
[Annotator "NA"]
[PlyCount "80"]
[EventDate "2018.11.09"]
[EventType "team-tourn"]
[EventCountry "SWE"]
[SourceTitle "playchess.com"]
[Source "ChessBase"]
[SourceQuality "1"]
[TimeControl "40/5400+30:1800+30"]

1. d4 {[%emt 0:00:00]} Nf6 {[%emt 0:00:19]} 2. c4 {[%emt 0:00:00]} e6 {[%emt 0:00:23]} 3. Nc3 {[%emt 0:00:00]} Bb4 {[%emt 0:00:47]} 4. Qc2 {[%emt 0:00:02]} Nc6 {[%emt 0:02:14]} 5. Nf3 {[%emt 0:00:12]} d6 {[%emt 0:00:25]} 6. Bd2 {[%emt 0:00:53]} Qe7 {[%emt 0:01:16]} 7. a3 {[%emt 0:02:52]} Bxc3 {[%emt 0:00:09]} 8. Bxc3 {[%emt 0:00:08]} O-O {[%emt 0:05:20]} 9. e3 {[%emt 0:14:45]} a5 {[%emt 0:01:45]} 10. b3 {[%emt 0:09:30]} e5 {[%emt 0:02:14]} 11. dxe5 {[%emt 0:02:27]} dxe5 {[%emt 0:04:29]} 12. Be2 {[%emt 0:01:18]} Bg4 {[%emt 0:05:55]} 13. O-O {[%emt 0:01:23]} Rfe8 {[%emt 0:07:51]} 14. h3 {[%emt 0:11:24]} Bh5 {[%emt 0:00:32]} 15. Qb2 {[%emt 0:04:21]} Ne4 {[%emt 0:08:07]} 16. Be1 {[%emt 0:05:19]} Nc5 {[%emt 0:13:26]} 17. b4 {[%emt 0:22:42]} Bxf3 {[%emt 0:07:51]} 18. gxf3 $15 {[%emt 0:03:47]} Qh4 {[%emt 0:06:21]} 19. Kh2 {[%emt 0:01:21]} Ne6 {[%emt 0:09:32]} 20. Rg1 {[%emt 0:01:00]} Ng5 {[%emt 0:01:02]} 21. Rg3 {[%emt 0:01:01]} f5 {[%emt 0:01:11]} 22. b5 {[%emt 0:14:03]} Nd8 {[%emt 0:01:43]} 23. Bc3 {[%emt 0:00:34]} Ndf7 {[%emt 0:02:49]} 24. c5 {[%emt 0:00:55]} Re6 {[%emt 0:05:25]} 25. Rag1 {[%emt 0:01:52]} Rg6 {[%emt 0:08:26]} 26. Bxe5 {[%emt 0:00:37]} Nxh3 {[%emt 0:00:07]} 27. Bf6 {[%emt 0:00:27]} Nhg5+ {[%emt 0:01:19]} 28. Kg2 {[%emt 0:00:03]} gxf6 {[%emt 0:00:50]} 29. Rh1 {[%emt 0:00:48]} Qa4 {[%emt 0:00:22]} 30. Bd1 {[%emt 0:00:30]} Qc4 {[%emt 0:00:34]} 31. Bb3 {[%emt 0:00:28]} Qxc5 {[%emt 0:00:13]} 32. Rc1 {[%emt 0:00:41]} Qe7 {[%emt 0:00:44]} 33. Qc2 {[%emt 0:00:25]} Rf8 {[%emt 0:01:38]} 34. Qxf5 {[%emt 0:00:09]} Qxa3 {[%emt 0:00:25]} 35. Bd5 {[%emt 0:00:24]} Qxc1 {[%emt 0:00:25]} 36. f4 {[%emt 0:00:11]} Kg7 {[%emt 0:01:02]} 37. fxg5 {[%emt 0:00:19]} Rxg5 {[%emt 0:00:34]} 38. Bxf7 {[%emt 0:00:33]} Rxg3+ {[%emt 0:00:27]} 39. Kxg3 {[%emt 0:00:48]} Qg1+ {[%emt 0:00:18]} 40. Kf3 {[%emt 0:00:17]} Rxf7 {[%emt 0:00:15]} 0-1

[Event "Elitserien Allsvenskan 2018-19"]
[Site "Sweden"]
[Date "2019.03.30"]
[Round "8.6"]
[White "Malesevic, Nedeljko"]
[Black "Ong, Kezli"]
[Result "1-0"]
[ECO "E10"]
[WhiteElo "2252"]
[BlackElo "2330"]
[Annotator "NA"]
[PlyCount "97"]
[EventDate "2018.11.09"]
[EventType "team-tourn"]
[EventCountry "SWE"]
[SourceTitle "playchess.com"]
[Source "ChessBase"]
[SourceQuality "1"]
[TimeControl "40/5400+30:1800+30"]

1. d4 Nf6 {[%emt 0:02:32]} 2. c4 {[%emt 0:00:00]} e6 {[%emt 0:00:20]} 3. Nf3 {[%emt 0:00:11]} d5 {[%emt 0:04:39]} 4. cxd5 {[%emt 0:00:26]} exd5 {[%emt 0:00:14]} 5. Bg5 {[%emt 0:00:09]} Be7 {[%emt 0:02:29]} 6. Nc3 {[%emt 0:01:29]} O-O {[%emt 0:03:48]} 7. Qc2 {[%emt 0:00:59]} c6 {[%emt 0:09:03]} 8. e3 {[%emt 0:00:50]} Nbd7 {[%emt 0:06:03]} 9. Bd3 {[%emt 0:01:17]} g6 {[%emt 0:02:43]} 10. O-O {[%emt 0:02:50]} Re8 {[%emt 0:14:40]} 11. Bf4 {[%emt 0:04:53] D36: Queen's Gambit Declined: Exchange Variation: Main line (5 Bg5 c6 6 Qc2)} (11. Rab1 Nb6 12. Ne5 a5 13. Rbe1 Ng4 14. Bxe7 Qxe7 15. f4 Nh6 16. e4 dxe4 17. Nxe4 Bf5 18. Ng3 Bxd3 19. Qxd3 {½-½ (49) Shtembuliak,E (2501)-Rambaldi,F (2563) Columbus 2017}) 11... Nh5 {[%emt 0:06:12]} 12. Nxd5 {[%emt 0:02:44]} Nxf4 {[%emt 0:04:38]} 13. Nxf4 {[%emt 0:00:46]} Bd6 {[%emt 0:02:02]} 14. Rfe1 $146 {[%emt 0:06:43]} ({Predecessor:} 14. Ne2 Nf6 15. e4 Bc7 16. h3 Bd7 17. Nc3 Qc8 18. e5 Nh5 19. Ng5 Nf4 20. Nce4 Kg7 21. Nf6 Rh8 22. Bc4 Ne6 23. Nf3 Bd8 24. Qc3 Nf4 25. Qd2 g5 {1-0 (25) Knechtel,R-Angerer,M Untergriesbach 2003}) 14... Nf6 {[%emt 0:09:02]} 15. h3 {[%emt 0:14:41]} Qa5 {[%emt 0:13:00]} 16. a3 {[%emt 0:09:52]} Bd7 {[%emt 0:02:02]} 17. Bc4 {[%emt 0:16:44]} Bxf4 {[%emt 0:07:43]} 18. exf4 {[%emt 0:00:22]} Nd5 {[%emt 0:03:50]} 19. Re5 {[%emt 0:05:48]} Kg7 {[%emt 0:02:39]} 20. b4 {[%emt 0:02:50]} Qb6 {[%emt 0:01:14]} 21. Rae1 {[%emt 0:03:17]} Nxf4 {[%emt 0:01:05]} 22. Rxe8 {[%emt 0:00:20]} Bxe8 {[%emt 0:00:29]} 23. Re7 {[%emt 0:03:04]} Nd5 {[%emt 0:00:30]} 24. Bxd5 {[%emt 0:00:58]} cxd5 {[%emt 0:00:10]} 25. Qe2 {[%emt 0:00:23]} Bb5 {[%emt 0:00:51]} 26. Qe5+ {[%emt 0:00:35]} Qf6 {[%emt 0:00:30]} 27. Ng5 {[%emt 0:01:36]} Qxe5 {[%emt 0:00:29]} 28. dxe5 {[%emt 0:00:10]} Be8 {[%emt 0:00:32]} 29. Ne6+ {[%emt 0:00:19]} Kg8 {[%emt 0:00:29]} 30. Nd4 {[%emt 0:06:05]} Rb8 {[%emt 0:00:30]} 31. b5 {[%emt 0:00:46]} h6 {[%emt 0:00:30]} 32. Rc7 {[%emt 0:00:55]} h5 {[%emt 0:00:31]} 33. f4 {[%emt 0:00:46]} h4 {[%emt 0:00:26]} 34. Kf2 {[%emt 0:00:37]} a6 {[%emt 0:00:15]} 35. b6 {[%emt 0:00:24]} Bb5 {[%emt 0:00:43]} 36. Kf3 {[%emt 0:00:54]} Bd3 {[%emt 0:00:36]} 37. Kg4 {[%emt 0:02:01]} Bf1 {[%emt 0:00:10]} 38. Kxh4 {[%emt 0:01:00]} Bxg2 {[%emt 0:00:11]} 39. Kg4 {[%emt 0:00:18]} Be4 {[%emt 0:01:07]} 40. Kg5 {[%emt 0:00:31]} Bg2 {[%emt 0:00:29]} 41. h4 {[%emt 0:32:04]} Bh3 {[%emt 0:19:30]} 42. Kf6 {[%emt 0:00:00]} Be6 {[%emt 0:03:16]} 43. h5 {[%emt 0:00:00]} gxh5 {[%emt 0:00:38]} 44. f5 {[%emt 0:00:00]} Bc8 {[%emt 0:04:52]} 45. Rxf7 {[%emt 0:00:00]} h4 {[%emt 0:00:51]} 46. e6 {[%emt 0:00:00]} h3 {[%emt 0:00:31]} 47. Nf3 {[%emt 0:00:00]} d4 {[%emt 0:01:28]} 48. Rg7+ {[%emt 0:00:00]} Kh8 {[%emt 0:00:11]} 49. Ne5 {[%emt 0:00:00]} 1-0

[Event "Elitserien Allsvenskan 2018-19"]
[Site "Sweden"]
[Date "2019.03.30"]
[Round "8.7"]
[White "Jepson, Christian"]
[Black "Norberg, Johan"]
[Result "1/2-1/2"]
[ECO "B09"]
[WhiteElo "2391"]
[BlackElo "2305"]
[Annotator "ChessBase"]
[PlyCount "85"]
[EventDate "2018.11.09"]
[EventType "team-tourn"]
[EventCountry "SWE"]
[SourceTitle "playchess.com"]
[Source "ChessBase"]
[SourceQuality "1"]
[TimeControl "40/5400+30:1800+30"]

1. d4 {[%emt 0:00:00]} d6 {[%emt 0:00:10]} 2. e4 {[%emt 0:01:42]} Nf6 {[%emt 0:00:24]} 3. Nc3 {[%emt 0:00:05]} g6 {[%emt 0:00:15]} 4. f4 {[%emt 0:00:44]} Bg7 {[%emt 0:01:20]} 5. Nf3 {[%emt 0:00:15]} c5 {[%emt 0:01:20]} 6. dxc5 {[%emt 0:00:10]} Qa5 {[%emt 0:00:09]} 7. Qd4 {[%emt 0:00:08]} dxc5 {[%emt 0:26:08]} 8. Qc4 {[%emt 0:00:29]} O-O {[%emt 0:14:27]} 9. e5 {[%emt 0:01:07]} Be6 {[%emt 0:06:34]} 10. Qa4 {[%emt 0:04:28]} Qxa4 {[%emt 0:01:19]} 11. Nxa4 {[%emt 0:00:07]} Nfd7 {[%emt 0:00:35]} 12. Be3 {[%emt 0:17:30]} b6 {[%emt 0:07:11]} 13. O-O-O {[%emt 0:08:52]} h6 {[%emt 0:03:12]} 14. Nc3 {[%emt 0:09:59]} Nc6 {[%emt 0:01:40]} 15. Bb5 {[%emt 0:17:49]} Rac8 {[%emt 0:03:44]} 16. h3 {[%emt 0:05:39]} Ndb8 {[%emt 0:03:45]} 17. g4 {[%emt 0:01:18]} Rfd8 {[%emt 0:17:57]} 18. Rhg1 {[%emt 0:05:15]} Rxd1+ {[%emt 0:00:46]} 19. Rxd1 {[%emt 0:01:07]} Rd8 {[%emt 0:00:17]} 20. Rxd8+ {[%emt 0:01:35]} Nxd8 {[%emt 0:00:01]} 21. Bd3 {[%emt 0:02:08]} Ndc6 {[%emt 0:00:32]} 22. a3 {[%emt 0:00:38]} Kf8 {[%emt 0:02:32]} 23. Be4 {[%emt 0:04:07]} Bd7 {[%emt 0:02:05]} 24. Nd5 {[%emt 0:07:21]} Na5 {[%emt 0:01:36]} 25. f5 {[%emt 0:03:40]} e6 {[%emt 0:00:36]} 26. Nxb6 {[%emt 0:05:05]} axb6 {[%emt 0:00:20]} 27. f6 {[%emt 0:00:03]} Nc4 {[%emt 0:00:36]} 28. Bf4 {[%emt 0:01:44]} Bc6 {[%emt 0:01:29]} 29. Bxc6 {[%emt 0:00:22]} Nxc6 {[%emt 0:00:01]} 30. fxg7+ {[%emt 0:00:18]} Kxg7 {[%emt 0:00:02]} 31. h4 {[%emt 0:00:56]} g5 {[%emt 0:00:38]} 32. hxg5 {[%emt 0:00:15]} hxg5 {[%emt 0:00:01]} 33. Bxg5 {[%emt 0:00:34]} N4xe5 {[%emt 0:00:17]} 34. Nxe5 {[%emt 0:00:08]} Nxe5 {[%emt 0:00:04]} 35. Bd8 {[%emt 0:00:05]} b5 {[%emt 0:01:21]} 36. b3 {[%emt 0:01:01]} c4 {[%emt 0:03:47]} 37. a4 {[%emt 0:00:54]} cxb3 {[%emt 0:00:03]} 38. axb5 {[%emt 0:00:33]} bxc2 {[%emt 0:00:09]} 39. b6 {[%emt 0:00:23]} Nd7 {[%emt 0:01:18]} 40. b7 {[%emt 0:00:10]} f5 {[%emt 0:00:31]} 41. g5 {[%emt 0:31:14]} Kg6 {[%emt 0:01:01]} 42. Kxc2 {[%emt 0:00:00]} f4 {[%emt 0:03:04]} 43. Kd2 {[%emt 0:00:00]} 1/2-1/2